Workbook

Sheet Master Sheet
B1: मास्टर शीट को पूर्ण भरने के बाद SALARY SHEET व OTHER DEDUCTION वाली शीट को जरूर चेक करें।
B2: OFFICE NAME | D2: GOVT. SR. SECONDARY SCHOOL, GORDHANPURA, ATRU, BARAN | O2: TAN NO. | P2: JDHG09699E | V2: YES
V3: NO
B4: EMPLOYEE INFORMATION | J4: DDO INFORMATION | V4: 9%
B5: EMPLOYEE NAME | E5: PARMANAND MEGHWAL | J5: DDO NAME | M5: RAJENDRA KUMAR CHITTORA | Q5: YES | V5: 18%
B6: DESIGNATION | E6: SENIOR TEACHER | J6: DDO FATHER'S NAME | M6: RAM LAL | Q6: NO | V6: 4
B7: PAN NUMBER | E7: ASQPM6311G | J7: DESIGNATION | M7: PRINCIPAL | Q7: 9% | V7: 5
B8: BANK A/C NUMBER | E8: 2225617763 | J8: HOUSE OWNER DETAIL (HRA RENT RECEIPT) | Q8: 18% | V8: 6
B9: MOBILE NUMBER | E9: 9784379510 | J9: HOUSE OWNER NAME | M9: RAM DAYAL NAGAR | V9: 7
J10: ADDRESS | M10: KAWAI SALPURA, ATRU BARAN | V10: 8
B11: SALARY DETAIL | Q11: 4 | R11: PARMANAND MEGHWAL SR. TEACHER | V11: 9
V12: 10
B13: क्या आप NPS (GPF-2004) के कर्मचारी हैं? | H13: YES | J13: MARCH 2022 BASIC | M13: 47900 | V13: 11
B14: क्या आपने समर्पित वेतन लिया? | H14: YES | J14: S.I. | M14: 4000 | V14: 12
B15: समर्पित वेतन लेने का माह ? | H15: 8 | J15: L.I.C. | M15: 2250 | V15: 1
B16: बोनस मिला ? | H16: YES | V16: 2
B17: HRA दर | H17: 9% | J17: RAJTEACHERS.NET | V17: 3
B18: क्या आप वरिष्ठ नागरिक हैं? | H18: YES

Sheet GA-55
C1: GPF 2004 | D1: ='Master Sheet'!H13 -> YES | F1: Surrender | I1: ='Master Sheet'!H14 -> YES | K1: Surrender Month | O1: ='Master Sheet'!H15 -> 8 | P1: HRA | R1: ='Master Sheet'!H17 -> 9% | S1: Bounus | V1: ='Master Sheet'!H16 -> YES | X1: Senior Citizen | AB1: ='Master Sheet'!H18 -> YES | AD1: No | AE1: No
AD2: 9%
C3: ='Master Sheet'!D2 -> GOVT. SR. SECONDARY SCHOOL, GORDHANPURA, ATRU, BARAN | AD3: 18%
C4: INCOME TAX CALCULATION (GA-55) 2022-23
C5: NAME : | D5: ='Master Sheet'!E5 -> PARMANAND MEGHWAL | K5: ='Master Sheet'!E6 -> SENIOR TEACHER | O5: PAN : | P5: ='Master Sheet'!E7 -> ASQPM6311G | T5: TAN: | U5: ='Master Sheet'!P2 -> JDHG09699E | Y5: A/C NO. | AB5: ='Master Sheet'!E8 -> 2225617763 | AD5: Yes | AE5: Yes
M6: RAJTEACHERS.NET | Y6: MOB NO. | AB6: ='Master Sheet'!E9 -> 9784379510 | AD6: No | AE6: No
C7: Month | D7: ALLOWANCES | O7: DEDUCTIONS | AC7: Bill No. & T.V. No.
D8: Basic Pay | E8: Dearness Pay | F8: Leave Pay | G8: Spl. Pay | H8: D.A. | I8: H.R.A. | J8: Washing Allow. | K8: ROP (If any, put the value in minus) | L8: Other Allowance 1 | M8: Other Allowance 2 | N8: Gross Salary | O8: =IF(D1="No","GPF","GPF 2004") -> GPF 2004 | P8: =IF(D1="No","GPF LOAN","") ->  | Q8: SI | R8: SI LOAN + INT | S8: RPMF/RGHS | T8: LIC | U8: Group Insurance Accidental | V8: HBA Premium | W8: HBA Interest | X8: Income Tax / TDS | Y8: HITKARI NIDHI | Z8: CM Corona Fund | AA8: Total Deduction | AB8: Net Payment
B9: 3 | C9: 2022-03-01 | D9: ='Master Sheet'!M13 -> 47900 | E9: 0 | F9: 0 | G9: 0 | H9: =ROUND(31%*D9,0) -> 14849 | I9: =IF($R$1=18%,ROUND(0.18*D9,0),ROUND(0.09*D9,0)) -> 4311 | J9: 0 | K9: 0 | L9: 0 | M9: 0 | N9: =SUM(D9:M9) -> 67060 | O9: =IF(D9<23101,1450,IF(D9<28501,1625,IF(D9<38501,2100,IF(D9<51501,2850,IF(D9<62001,3575,IF(D9<72001,4200,IF(D9<80001,4800,IF(D9<116001,6150,IF(D9<167001,8900,10500))))))))) -> 2850 | P9: 0 | Q9: ='Master Sheet'!M14 -> 4000 | R9: 0 | S9: =IF(D9<18001,265,IF(D9<33501,440,IF(D9<54001,658,875))) -> 658 | T9: ='Master Sheet'!M15 -> 2250 | U9: 0 | X9: 0 | AA9: =SUM(O9:Y9) -> 9758 | AB9: =N9-AA9 -> 57302 | AE9: 4
B10: 4 | C10: 2022-04-01 | D10: =D9 -> 47900 | E10: =IF(E$9=0,0,ROUND(D10/2,0)) -> 0 | F10: =IF(F$9=0,0,F9) -> 0 | G10: 0 | H10: =ROUND(34%*D10,0) -> 16286 | I10: =IF($R$1=18%,ROUND(0.18*D10,0),ROUND(0.09*D10,0)) -> 4311 | J10: =IF(J$9=0,0,J9) -> 0 | K10: =IF(K$9=0,0,K9) -> 0 | L10: 0 | M10: =IF(M$9=0,0,M9) -> 0 | N10: =SUM(D10:M10) -> 68497 | O10: =IF(D10<23101,1450,IF(D10<28501,1625,IF(D10<38501,2100,IF(D10<51501,2850,IF(D10<62001,3575,IF(D10<72001,4200,IF(D10<80001,4800,IF(D10<116001,6150,IF(D10<167001,8900,10500))))))))) -> 2850 | P10: =P9 -> 0 | Q10: =Q9 -> 4000 | R10: =R9 -> 0 | S10: =IF(D10<18001,265,IF(D10<33501,440,IF(D10<54001,658,875))) -> 658 | T10: =T9 -> 2250 | V10: =V9 -> 0 | W10: 0 | X10: =X9 -> 0 | Y10: 0 | AA10: =SUM(O10:Y10) -> 9758 | AB10: 58739 | AE10: 5
B11: 5 | C11: 2022-05-01 | D11: 47900 | E11: =IF($E$9=0,0,ROUND(D11/2,0)) -> 0 | F11: 0 | G11: 0 | H11: =ROUND(34%*D11,0) -> 16286 | I11: 4311 | J11: 0 | K11: =IF(K$9=0,0,K10) -> 0 | L11: =IF(L$9=0,0,L10) -> 0 | M11: 0 | N11: 68497 | O11: 2850 | P11: =P10 -> 0 | Q11: =Q10 -> 4000 | R11: =R10 -> 0 | S11: 658 | T11: =T10 -> 2250 | U11: 0 | V11: 0 | W11: 0 | X11: 0 | Y11: =Y10 -> 0 | AA11: 9758 | AB11: 58739 | AE11: 6
B12: 6 | C12: 2022-06-01 | D12: 47900 | E12: 0 | F12: 0 | G12: 0 | H12: 16286 | I12: 4311 | J12: 0 | K12: 0 | L12: 0 | M12: 0 | N12: 68497 | O12: 2850 | P12: 0 | Q12: 4000 | R12: 0 | S12: 658 | T12: 2250 | U12: 0 | V12: 0 | W12: 0 | X12: 0 | Y12: =Y11 -> 0 | AA12: 9758 | AB12: 58739 | AE12: 7
B13: 7 | C13: 2022-07-01 | D13: =MROUND(ROUND(1.03*D12,0),100) -> 49300 | E13: 0 | F13: =IF(F$9=0,0,F12) -> 0 | G13: =IF(G$9=0,0,G12) -> 0 | H13: 16762 | I13: 4437 | J13: =IF(J$9=0,0,J12) -> 0 | K13: =IF(K$9=0,0,K12) -> 0 | L13: =IF(L$9=0,0,L12) -> 0 | M13: =IF(M$9=0,0,M12) -> 0 | N13: 70499 | O13: 2850 | P13: =P12 -> 0 | Q13: =Q12 -> 4000 | R13: =R12 -> 0 | S13: 658 | T13: =T12 -> 2250 | U13: 0 | V13: =V12 -> 0 | W13: =W12 -> 0 | X13: =X12 -> 0 | Y13: 0 | AA13: 9758 | AB13: 60741 | AE13: 8
B14: 8 | C14: 2022-08-01 | D14: =D13 -> 49300 | E14: 0 | F14: 0 | G14: 0 | H14: 16762 | I14: 4437 | J14: 0 | K14: 0 | L14: 0 | M14: 0 | N14: 70499 | O14: 2850 | P14: 0 | Q14: 4000 | R14: 0 | S14: 658 | T14: 2250 | U14: 0 | V14: 0 | W14: 0 | X14: 0 | Y14: 0 | AA14: 9758 | AB14: 60741 | AE14: 9
B15: 9 | C15: 2022-09-01 | D15: 49300 | E15: 0 | F15: 0 | G15: 0 | H15: 16762 | I15: 4437 | J15: 0 | K15: 0 | L15: 0 | M15: 0 | N15: 70499 | O15: 2850 | P15: 0 | Q15: 4000 | R15: 0 | S15: 658 | T15: 2250 | U15: 0 | V15: 0 | W15: 0 | X15: 0 | Y15: 0 | AA15: 9758 | AB15: 60741 | AE15: 10
B16: 10 | C16: 2022-10-01 | D16: 49300 | E16: 0 | F16: =IF(F$9=0,0,F15) -> 0 | G16: =IF(G$9=0,0,G15) -> 0 | H16: =ROUND(38%*D16,0) -> 18734 | I16: 4437 | J16: 0 | K16: 0 | L16: 0 | M16: 0 | N16: 72471 | O16: 2850 | P16: 0 | Q16: 4000 | R16: 0 | S16: 658 | T16: 2250 | U16: 0 | V16: 0 | W16: 0 | X16: 0 | Y16: 0 | AA16: 9758 | AB16: 62713 | AE16: 11
B17: 11 | C17: 2022-11-01 | D17: 49300 | E17: 0 | F17: =IF(F$9=0,0,F16) -> 0 | G17: 0 | H17: =ROUND(38%*D17,0) -> 18734 | I17: 4437 | J17: 0 | K17: 0 | L17: 0 | M17: 0 | N17: 72471 | O17: 2850 | P17: 0 | Q17: 4000 | R17: 0 | S17: 658 | T17: 2250 | U17: 0 | V17: 0 | W17: 0 | X17: 0 | Y17: 0 | AA17: 9758 | AB17: 62713 | AE17: 12
B18: 12 | C18: 2022-12-01 | D18: 49300 | E18: 0 | F18: =IF(F$9=0,0,F17) -> 0 | G18: 0 | H18: 18734 | I18: 4437 | J18: 0 | K18: 0 | L18: 0 | M18: 0 | N18: 72471 | O18: 2850 | P18: 0 | Q18: 4000 | R18: 0 | S18: 658 | T18: 2250 | U18: 0 | V18: 0 | W18: 0 | X18: 0 | Y18: 250 | AA18: 10008 | AB18: 62463 | AE18: 1
B19: 1 | C19: 2023-01-01 | D19: 49300 | E19: 0 | F19: =IF(F$9=0,0,F18) -> 0 | G19: 0 | H19: 18734 | I19: 4437 | J19: 0 | K19: 0 | L19: 0 | M19: 0 | N19: 72471 | O19: 2850 | P19: 0 | Q19: 4000 | R19: 0 | S19: 658 | T19: 2250 | U19: 0 | V19: 0 | W19: 0 | X19: 0 | AA19: 9758 | AB19: 62713 | AE19: 2
B20: 2 | C20: 2023-02-01 | D20: 49300 | E20: 0 | F20: =IF(F$9=0,0,F19) -> 0 | G20: 0 | H20: 18734 | I20: 4437 | J20: 0 | K20: 0 | L20: 0 | M20: 0 | N20: 72471 | O20: 2850 | P20: 0 | Q20: 4000 | R20: 0 | S20: 658 | T20: 2250 | U20: 0 | V20: 0 | W20: 0 | X20: 0 | AA20: 9758 | AB20: 62713 | AE20: 3
C21: DA Arrear 34% | H21: =(ROUND(34%*D9,0)-ROUND(31%*D9,0))*3 -> 4311 | N21: =H21 -> 4311 | O21: =H21 -> 4311 | T21: 0 | AA21: 4311 | AB21: 0
C22: DA Arrear 38% | H22: =(ROUND(38%*D13,0)-ROUND(34%*D13,0))*3 -> 5916 | N22: =H22 -> 5916 | O22: =H22 -> 5916 | T22: 0 | AA22: 5916 | AB22: 0
C23: Surrender | D23: =IF(I1="NO",0,IF(O1=3,D20,VLOOKUP(O1,B9:D20,3,FALSE)))/2 -> 24650 | H23: =IF(AND(O1>3,O1<7),ROUND(34%*D23,0),ROUND(38%*D23,0)) -> 9367 | N23: 34017 | AA23: 0 | AB23: 34017
C24: Bonus | D24: =IF(V1="Yes",6774,0) -> 6774 | N24: 6774 | O24: =ROUND(D24*25/100,0) -> 1694 | AA24: 1694 | AB24: 5080
C25: Fixation Arrear | N25: 0 | AA25: 0 | AB25: 0
C26: Salary Arrear 1 | N26: 0 | AA26: 0 | AB26: 0
C27: Salary Arrear 2 | N27: 0 | AA27: 0 | AB27: 0
C28: Salary Arrear 3 | N28: 0 | AA28: 0 | AB28: 0
C29: Other | E29: 0 | F29: 0 | N29: 0 | AA29: 0 | AB29: 0
C30: TOTAL | D30: =SUM(D9:D29) -> 617424 | E30: =SUM(E9:E29) -> 0 | F30: 0 | G30: 0 | H30: 227257 | I30: 52740 | J30: 0 | K30: 0 | L30: 0 | M30: 0 | N30: 897421 | O30: 46121 | P30: 0 | Q30: 48000 | R30: 0 | S30: 7896 | T30: 27000 | U30: 0.00 | V30: 0 | W30: 0 | X30: 0 | Y30: 250 | Z30: 0 | AA30: 129267 | AB30: 768154
E35: Signature of Employee | AB35: Signature of DDO

Sheet Other Deduction
A2: वेतन के अतिरिक्त कटौतियाँ, आय/जमा राशि एवं छूट का
A3: ='GA-55'!D5& " , " &'GA-55'!K5&" PAN- "&'GA-55'!P5 -> PARMANAND MEGHWAL , SENIOR TEACHER PAN- ASQPM6311G
A4: 1. मकान किराया भत्ता (छूट जो लेनी हैं।) | B4: 51228.00 | D4: 18. बचत खाते की जमा राशि पर प्राप्त ब्याज (80 TTA/80 TTB) हेतु | E4: 0.00 | F4: BASIC+D.A. | DR4: UPS Kuhada Khurd
A5: 2. मनोरंजन भत्ता धारा 16(ii) के अंतर्गत | B5: 0.00 | D5: 19. अन्य आय - (एफडी पर ब्याज, अन्य ब्याज या अन्य स्त्रोत से आय आदि का योग) | E5: 0.00 | F5: ='GA-55'!N30-'GA-55'!I30 -> 844681
A6: 3. व्यवसाय कर धारा 16(iii) के अंतर्गत | B6: 0.00 | D6: 20. अन्य जमा राशि (धारा 80C के अंतर्गत) | E6: 0.00 | F6: Taxable Amt
A7: 4. गृह संपत्ति से प्राप्त किराया - आय | B7: 0.00 | D7: 21. धारा 80CCC -पेंशन प्लान हेतु अंशदान (एनपीएस के अलावा) | E7: 0.00 | F7: ='Tax Old Regime'!Q48 -> 675070
A8: 5. गृहकर | B8: 0.00 | D8: 22. 80CCD(1B) - नवीन पेंशन योजना में अतिरिक्त अंशदान (अधिकतम रु. 50,000) | E8: 0.00 | F8: Tax Deposited
A9: 6. गृह ऋण किस्त मूल (जो वेतन से नहीं काटा गया) | B9: 0.00 | D9: 23. धारा 80D - चिकित्सा बीमा प्रीमियम (सामान्य-25,000 व वरिष्ठ नागरिक 50,000) | E9: 0.00 | F9: ='GA-55'!X30 -> 0.00
A10: 7. गृह ऋण किस्त ब्याज (जो वेतन से नहीं काटा गया) | B10: 0.00 | D10: 24. धारा 80DD विकलांग आश्रितों के चिकित्सा उपचार (अधिकतम: 75,000 व वरिष्ठ नागरिक 125,000) | E10: 0.00 | F10: Rebate Under Section 80C, 80CCC, 80CCD(1)
A11: 8. जीवन बीमा प्रीमियम जो (जो वेतन से नहीं काटा गया) LIC | B11: 0.00 | D11: 25. धारा 80DDB - विशिष्ट रोगों के उपचार हेतु (सामान्य 40,000 , वरिष्ठ नागरिक 1 लाख) | E11: 0.00 | DR11: UPS Banediya Charnan
A12: 9. पी.एल.आई. (PLI) | B12: 0.00 | D12: 26. धारा 80E उच्च शिक्षा हेतु लिए ऋण का ब्याज (धारा 10E) | E12: 0.00 | DR12: UPS Laxmipura Dhakaran
A13: 10. ट्यूशन फीस (Tution Fees) | B13: 0.00 | D13: 27. धारा 80G धर्मार्थ संस्थाओं आदि को दिये दान (क श्रेणी में 100 प्रतिशत एवं ख श्रेणी में 50 प्रतिशत) | E13: 0.00 | F13: ='Tax Old Regime'!Q32 -> 121121 | DR13: UPS Pathraj Kala
A14: 11. यू.एल.आई.पी./वार्षिक प्लान | B14: 0.00 | D14: 28. धारा 80U स्थाई रूप से शारीरिक असमर्थता की दशा में (अधिकतम 75,000 तथा अधिनियम 1995 के अनुसार 125,000) | E14: 0.00
A15: 12. राष्ट्रीय बचत पत्र (NSC) | B15: 0.00 | D15: 29. धारा 80GGA अनुमोदित वैज्ञानिक, सामाजिक, ग्रामीण विकास आदि हेतु दिया गया दान | E15: 0.00 | F15: मकान किराया छूट के रशीद की आवश्यकता | DR15: PS Aarampura
A16: 13. राष्ट्रीय बचत पत्र पर अदत्त ब्याज | B16: 0.00 | D16: 30. इक्विटी लिंक सेविंग स्कीम | E16: 0.00 | DR16: UPS Laxmipura Dhakaran
A17: 14. लोक भविष्य निधि (PPF) | B17: 0.00 | D17: 31. स्थगित वार्षिकी (Defferred Annuty) | E17: 0.00 | DR17: UPS Raghunathpura
A18: 15. राष्ट्रीय बचत स्कीम (NSS) | B18: 0.00 | D18: 32. राहत धारा 89 के तहत | E18: 0.00 | F18: =IF(B4>=1,(F5*10%+B4),0) -> 135696.10 | DR18: UPS Manda
A19: 16. सुकन्या समृद्धि योजना में जमा राशि (SSY) | B19: 0.00 | D19: 33. वेतन बिल के अलावा जमा कराया गया आयकर (TDS) | E19: 0.00 | DR19: UPS Sandla
A20: 17. धारा 10(14) के अंतर्गत अन्य भत्ते | B20: 0.00 | D20: 34. धारा 80GGC राजनीतिक पार्टियों को दिया गया दान | E20: 0.00
A21: ='Tax Old Regime'!B64 -> Income Tax Payable | D21: ='Tax Old Regime'!Q64 -> 46815.00 | E21: HRA | F21: ='GA-55'!I30 -> 52740.00 | DR21: UPS Ramsinghpura
A22: ="Total Rebate of (US 80C, 80CCC,80CCD(1)) = "&'Tax Old Regime'!Q32 -> Total Rebate of (US 80C, 80CCC,80CCD(1)) = 121121 | D22: ="Investable Amount = "&(150000-'Tax Old Regime'!Q32) -> Investable Amount = 28879 | DR22: GSS Ganeshganj
A23: WWW.RAJTEACHERS.NET

Sheet Tax Old Regime
B2: ='GA-55'!C3 -> GOVT. SR. SECONDARY SCHOOL, GORDHANPURA, ATRU, BARAN
B3: आयकर गणना प्रपत्र वर्ष 2022-23 (कर निर्धारण वर्ष 2023-24)
B4: 1 | C4: नाम कर्मचारी : | E4: ='GA-55'!D5 -> PARMANAND MEGHWAL | K4: पद : | L4: ='GA-55'!K5 -> SENIOR TEACHER | O4: PAN : | P4: =IF('GA-55'!P5="","",'GA-55'!P5) -> ASQPM6311G
B5: 2 | C5: आय: वर्ष-2022-23 में प्राप्त कुल वेतन (कर योग्य सुविधाओं के मूल्य सहित) | P5: रु. | Q5: ='GA-55'!N30 -> 897421.00
B6: 3 | C6: (i) गृह किराया, धारा 10(13-A) के अंतर्गत जो कर मुक्त हैं। | P6: रु. | Q6: ='Other Deduction'!B4 -> 51228.00
C7: (ii) धारा 10(14) के अंतर्गत अन्य भत्ते | P7: रु. | Q7: ='Other Deduction'!B20 -> 0.00
B8: 4 | C8: शेष (2-3) | P8: रु. | Q8: =Q5-Q6-Q7 -> 846193.00
B9: 5 | C9: (i) मनोरंजन भत्ता धारा 16(ii) के अंतर्गत (अधिकतम सीमा रु. 5000) | M9: ='Other Deduction'!B5 -> 0.00
C10: (ii) व्यवसाय कर धारा 16(iii) के अंतर्गत | M10: ='Other Deduction'!B6 -> 0.00
C11: (iii) स्टेंडर्ड डिडक्शन (Standard Deduction) 50,000 (अधिकतम) | M11: =IF(Q8<50000,Q8,50000) -> 50000.00 | P11: रु. | Q11: =SUM(M9:O11) -> 50000.00
B12: 6 | C12: शेष (4-5) | P12: रु. | Q12: =Q8-Q11 -> 796193.00
B13: 7 | C13: (अ) गृह संपत्ति से आय (1)स्वयं के उपयोग में शून्य | K13: (2) प्राप्त किराया रु. | M13: ='Other Deduction'!B7 -> 0.00
C14: (ब) घटाये | E14: किराए का 30% | H14: गृह ऋण पर ब्याज | K14: गृहकर | M14: योग 7(ब)
E15: =ROUND(M13*0.3,0) -> 0.00 | H15: =IF(('GA-55'!W30+'Other Deduction'!B10)>200000,200000,('GA-55'!W30+'Other Deduction'!B10)) -> 0.00 | K15: ='Other Deduction'!B8 -> 0.00 | M15: =E15+H15+K15 -> 0.00
C16: शेष -/+(7(अ) एवं योग 7(ब) का | P16: रु. | Q16: =M13-M15 -> 0.00
B17: 8 | C17: कुल शेष -/+(6 एवं 7) | P17: रु. | Q17: =Q12+Q16 -> 796193.00
B18: 9 | C18: अन्य आय | P18: रु. | Q18: ='Other Deduction'!E4+'Other Deduction'!E5 -> 0.00
B19: 10 | C19: सकल आय योग (8+9) | P19: रु. | Q19: =Q17+Q18 -> 796193.00
B20: 11 | C20: घटाइए कटौतियाँ - धारा US 80C, 80CCC,80CCD (1)
C21: (A) अधिकतम सीमा 1,50,000/- (धारा 80CCE) के अलावा
C22: (i) | D22: राज्य बीमा (SI) | H22: रु. | I22: ='GA-55'!Q30 -> 48000.00 | J22: (x) | K22: पेंशन प्लान हेतु अंशदान धारा (80CCC) | N22: रु. | O22: ='Other Deduction'!E7 -> 0.00
C23: (ii) | D23: जीवन बीमा प्रीमियम (LIC) | H23: रु. | I23: ='GA-55'!T30+'Other Deduction'!B11 -> 27000.00 | J23: (xi) | K23: राष्ट्रीय बचत पत्र पर आदत्त ब्याज | N23: रु. | O23: ='Other Deduction'!B16 -> 0.00
C24: (iii) | D24: राष्ट्रीय बचत पत्र (NSC) | H24: रु. | I24: ='Other Deduction'!B15 -> 0.00 | J24: (xii) | K24: ट्यूशन फीस | N24: रु. | O24: ='Other Deduction'!B13 -> 0.00
C25: (iv) | D25: लोक भविष्य निधि (PPF) | H25: रु. | I25: ='Other Deduction'!B17 -> 0.00 | J25: (xiii) | K25: इक्विटी लिंक सेविंग स्कीम | N25: रु. | O25: ='Other Deduction'!E16 -> 0.00
C26: (v) | D26: राष्ट्रीय बचत स्कीम (NSS) | H26: रु. | I26: ='Other Deduction'!B18 -> 0.00 | J26: (xv) | K26: स्थगित वार्षिकी (Defferred Annuty) | N26: रु. | O26: ='Other Deduction'!E17 -> 0.00
C27: (vi) | D27: सामान्य प्रावधायी निधि (GPF/GPF 2004) | H27: रु. | I27: ='GA-55'!O30 -> 46121.00 | J27: (xiv) | K27: पी.एल.आई. (PLI) | N27: रु. | O27: ='Other Deduction'!B12 -> 0.00
C28: (vii) | D28: सामूहिक बीमा प्रीमियम (G.Ins.) | H28: रु. | I28: ='GA-55'!U10 -> 0.00 | J28: (xvi) | K28: अन्य जमा राशि (80C के अंतर्गत) | N28: रु. | O28: ='Other Deduction'!E6 -> 0.00
C29: (viii) | D29: यू.एल.आई.पी./वार्षिक प्लान | H29: रु. | I29: ='Other Deduction'!B14 -> 0.00 | J29: (xvii) | K29: सुकन्या समृद्धि योजना में जमा राशि | N29: रु. | O29: ='Other Deduction'!B19 -> 0.00
C30: (ix) | D30: गृह ऋण किश्त (HBA Premium) | H30: रु. | I30: ='GA-55'!V30+'Other Deduction'!B9 -> 0.00 | J30: (xviii) | N30: रु.
C31: योग (i से XViii) | N31: रु. | O31: =SUM(I22:I30)+SUM(O22:O30) -> 121121.00
C32: अधिकतम कटौती की राशि 1.50 लाख रु. तक | P32: रु. | Q32: =IF(O31<150001,ROUND(O31,0),150000) -> 121121.00
C33: (B) घटाइए - धारा 80CCD 1(B) नवीन पेंशन योजना में अतिरिक्त अंशदान (अधिकतम रु. 50,000) | P33: रु. | Q33: ='Other Deduction'!E8 -> 0.00
C34: योग 11(A+B+C) | P34: रु. | Q34: =SUM(Q32:Q33) -> 121121.00
B35: 12 | C35: अन्य कटौतियाँ
C36: 1-धारा 80D, चिकित्सा बीमा प्रीमियम (स्वयं, पति/पत्नी व बच्चों के लिए रु. 25000, माता-पिता के लिए रु. 25000, सीनियर सिटीजन रु. 50,000) | P36: रु. | Q36: ='Other Deduction'!E9 -> 0.00
C37: 2-धारा 80D, विकलांग आश्रितों के चिकित्सा आश्रितों के चिकित्सा उपचार (अधिकतम 75,000 तथा 80% या अधिक विकलांगता रु. 125000) | P37: रु. | Q37: ='Other Deduction'!E10 -> 0.00
C38: 3-धारा 80D विशीष्ट रोगों के उपचार हेतु कटौती (अधिकतम रु. 40,000 , सीनियर सिटीजन हेतु रु. 100,000) | P38: रु. | Q38: ='Other Deduction'!E11 -> 0.00
C39: 4-धारा 80D, उच्च शिक्षा हेतु लिए ऋण का ब्याज | P39: रु. | Q39: ='Other Deduction'!E12 -> 0.00
C40: 5-धारा 80G धर्मार्थ संस्थाओं आदि को दिये दान (क श्रेणी में 100 प्रतिशत एवं ख श्रेणी में 50 प्रतिशत) | P40: रु. | Q40: ='Other Deduction'!E13 -> 0.00
C41: 6-धारा 80U स्थाई रूप से शारीरिक असमर्थता की दशा में (अधिकतम 75,000 तथा अधिनियम 1995 के अनुसार 125,000) | P41: रु. | Q41: ='Other Deduction'!E14 -> 0.00
C42: 7-धारा 80 TTA बचत खाते पर अधिकतम ब्याज रु. 10,000 194(1A) (80TTB-वरिष्ठ नागरिक अधिकतम ब्याज 50,000 रु.) | P42: रु. | Q42: =IF('GA-55'!AB1<>"No",IF('Other Deduction'!E4<50001,'Other Deduction'!E4,50000),IF('Other Deduction'!E4<10001,'Other Deduction'!E4,10000)) -> 0.00
C43: 8-धारा 80GGA अनुमोदित वैज्ञानिक, सामाजिक, ग्रामीण विकास आदि हेतु दिया गया दान | P43: रु. | Q43: ='Other Deduction'!E15 -> 0.00
C44: 9-धारा 80GGC राजनीतिक पार्टियों को दिया गया दान | P44: रु. | Q44: ='Other Deduction'!E20 -> 0.00
C45: कुल योग 12 (1 से 9 तक) | P45: रु. | Q45: =SUM(Q36:Q44) -> 0.00
B46: 13 | C46: कुल कटौती ( 11 + 12) | P46: रु. | Q46: =Q34+Q45 -> 121121.00
B47: 14 | C47: कर योग्य आय ( 10-13 ) | P47: रु. | Q47: =(Q19-Q46) -> 675072.00
B48: 15 | C48: कुल आय की राशि को सम्पूर्ण करना (दस के गुणज में करना) धारा 288A | P48: रु. | Q48: =ROUND(Q47,-1) -> 675070.00
B49: 16 | C49: आय की गणना उपरोक्त कॉलम 15 के आधार पर
C50: एक व्यक्ति कर दाता | H50: वरिष्ठ नागरिक (60 से 80 वर्ष तक) | L50: 80 वर्ष या अधिक आयु
C51: 2,50,000 तक | F51: Nil | H51: 3,00,000 तक | K51: Nil | L51: 3,00,000 तक | P51: रु. | Q51: 0.00
C52: 2,50,001-5,00,000 | F52: 5% | H52: 3,00,001-5,00,000 | K52: 5% | L52: 5,00,000 तक | O52: Nil | P52: रु. | Q52: =ROUND(IF('GA-55'!AB1="No",IF(Q48<250001,0,IF(Q48>500000,12500,((Q48-250000)*0.05))),IF(Q48<300001,0,IF(Q48>500000,10000,((Q48-300000)*0.05)))),0) -> 10000.00
C53: 5,00,001-10,00,000 | F53: 20% | H53: 5,00,001-10,00,000 | K53: 20% | L53: 5,00,001-10,00,000 | O53: 20% | P53: रु. | Q53: =IF(Q48<500001,0,IF(Q48>1000000,100000,((Q48-500000)*0.2))) -> 35014.00
C54: 10,00,000 से अधिक | F54: 30% | H54: 10,00,000 से अधिक | K54: 30% | L54: 10,00,000 से अधिक | O54: 30% | P54: रु. | Q54: =IF(Q48<1000001,0,((Q48-1000000)*0.3)) -> 0.00
C55: (1) योग आयकर | P55: रु. | Q55: =SUM(Q51:Q54) -> 45014.00
C56: (2) छूट धारा 87(A) (2.50 लाख से 5.00 लाख तक की कर योग्य आय पर आयकर की छूट अधिकतम रु. 12,500 तक) | P56: रु. | Q56: =IF(Q48>500000,0,IF(Q55<12501,Q55,12500)) -> 0.00
C57: (3) शेष आयकर (1-2) | P57: रु. | Q57: =Q55-Q56 -> 45014.00
C58: (4) शिक्षा उपकार 2% एवं उच्च शिक्षा के लिए अधिभार 2% (योग 4%) | P58: रु. | Q58: =ROUND(Q57*0.04,0) -> 1801.00
C59: कुल आयकर (3+4) | P59: रु. | Q59: =SUM(Q57:Q58) -> 46815.00
B60: 17 | C60: घटाइए : राहत धारा 89 के तहत | P60: रु. | Q60: ='Other Deduction'!E18 -> 0.00
B61: 18 | C61: कुल शेष आयकर | P61: रु. | Q61: =Q59-Q60 -> 46815.00
B62: 19 | C62: आयकर कटौती का विवरण | F62: सितम्बर 2022 तक रु. | J62: दिसम्बर 2022 तक रु. | L62: जनवरी 2023 तक रु. | M62: फरवरी 2023 तक रु. | O62: टी.डी.एस. रु. | P62: योग कॉलम 19
F63: =SUM('GA-55'!X9:X15) -> 0 | J63: =SUM('GA-55'!X16:X18) -> 0 | L63: ='GA-55'!X19 -> 0 | M63: ='GA-55'!X20 -> 0 | O63: =SUM('GA-55'!X21:X29)+'Other Deduction'!E19 -> 0 | P63: =F63+J63+L63+M63+O63 -> 0.00
B64: =IF(Q61>P63,"Income Tax Payable",IF(Q61<P63,"Income Tax Refundable","Income Tax Payble/Refundable")) -> Income Tax Payable | P64: रु. | Q64: =IF(Q61>P63,Q61-P63,P63-Q61) -> 46815.00
D66: हस्ताक्षर कार्मिक | M66: हस्ताक्षर डीडीओ

Sheet Tax New Regime
B2: ='GA-55'!C3 -> GOVT. SR. SECONDARY SCHOOL, GORDHANPURA, ATRU, BARAN
B3: आयकर गणना प्रपत्र वर्ष 2022-23 (कर निर्धारण वर्ष 2023-24)
B4: 1 | C4: नाम कर्मचारी : | E4: ='GA-55'!D5 -> PARMANAND MEGHWAL | K4: पद : | L4: ='GA-55'!K5 -> SENIOR TEACHER | O4: PAN : | P4: =IF('GA-55'!P5="","",'GA-55'!P5) -> ASQPM6311G
B5: 2 | C5: आय: वर्ष-2022-23 में प्राप्त कुल वेतन (कर योग्य सुविधाओं के मूल्य सहित) | P5: रु. | Q5: ='GA-55'!N30 -> 897421.00
B6: 3 | C6: (i) गृह किराया, धारा 10(13-A) के अंतर्गत जो कर मुक्त हैं। | P6: रु. | Q6: 0.00
C7: (ii) धारा 10(14) के अंतर्गत अन्य भत्ते | P7: रु. | Q7: 0.00
B8: 4 | C8: शेष (2-3) | P8: रु. | Q8: =Q5-Q6-Q7 -> 897421.00
B9: 5 | C9: (i) मनोरंजन भत्ता धारा 16(ii) के अंतर्गत (अधिकतम सीमा रु. 5000) | M9: ='Other Deduction'!B5 -> 0.00
C10: (ii) व्यवसाय कर धारा 16(iii) के अंतर्गत | M10: ='Other Deduction'!B6 -> 0.00
C11: (iii) स्टेंडर्ड डिडक्शन (Standard Deduction) 50,000 (अधिकतम) | M11: 0.00 | P11: रु. | Q11: =SUM(M9:O11) -> 0.00
B12: 6 | C12: शेष (4-5) | P12: रु. | Q12: =Q8-Q11 -> 897421.00
B13: 7 | C13: (अ) गृह संपत्ति से आय (1)स्वयं के उपयोग में शून्य | K13: (2) प्राप्त किराया रु. | M13: 0.00
C14: (ब) घटाये | E14: किराए का 30% | H14: गृह ऋण पर ब्याज | K14: गृहकर | M14: योग 7(ब)
E15: =ROUND(M13*0.3,0) -> 0.00 | H15: 0.00 | K15: ='Other Deduction'!B8 -> 0.00 | M15: =E15+H15+K15 -> 0.00
C16: शेष -/+(7(अ) एवं योग 7(ब) का | P16: रु. | Q16: =M13-M15 -> 0.00
B17: 8 | C17: कुल शेष -/+(6 एवं 7) | P17: रु. | Q17: =Q12+Q16 -> 897421.00
B18: 9 | C18: अन्य आय | P18: रु. | Q18: ='Other Deduction'!E4+'Other Deduction'!E5 -> 0.00
B19: 10 | C19: सकल आय योग (8+9) | P19: रु. | Q19: =Q17+Q18 -> 897421.00
B20: 11 | C20: घटाइए कटौतियाँ - धारा US 80C, 80CCC,80CCD (1)
C21: (A) अधिकतम सीमा 1,50,000/- (धारा 80CCE) के अलावा
C22: (i) | D22: राज्य बीमा (SI) | H22: रु. | I22: ='GA-55'!Q30 -> 48000.00 | J22: (x) | K22: पेंशन प्लान हेतु अंशदान धारा (80CCC) | N22: रु. | O22: ='Other Deduction'!E7 -> 0.00
C23: (ii) | D23: जीवन बीमा प्रीमियम (LIC) | H23: रु. | I23: ='GA-55'!T30+'Other Deduction'!B11 -> 27000.00 | J23: (xi) | K23: राष्ट्रीय बचत पत्र पर आदत्त ब्याज | N23: रु. | O23: ='Other Deduction'!B16 -> 0.00
C24: (iii) | D24: राष्ट्रीय बचत पत्र (NSC) | H24: रु. | I24: ='Other Deduction'!B15 -> 0.00 | J24: (xii) | K24: ट्यूशन फीस | N24: रु. | O24: ='Other Deduction'!B13 -> 0.00
C25: (iv) | D25: लोक भविष्य निधि (PPF) | H25: रु. | I25: ='Other Deduction'!B17 -> 0.00 | J25: (xiii) | K25: इक्विटी लिंक सेविंग स्कीम | N25: रु. | O25: ='Other Deduction'!E16 -> 0.00
C26: (v) | D26: राष्ट्रीय बचत स्कीम (NSS) | H26: रु. | I26: ='Other Deduction'!B18 -> 0.00 | J26: (xv) | K26: स्थगित वार्षिकी (Defferred Annuty) | N26: रु. | O26: ='Other Deduction'!E17 -> 0.00
C27: (vi) | D27: सामान्य प्रावधायी निधि (GPF/GPF 2004) | H27: रु. | I27: ='GA-55'!O30 -> 46121.00 | J27: (xiv) | K27: पी.एल.आई. (PLI) | N27: रु. | O27: ='Other Deduction'!B12 -> 0.00
C28: (vii) | D28: सामूहिक बीमा प्रीमियम (G.Ins.) | H28: रु. | I28: ='GA-55'!U10 -> 0.00 | J28: (xvi) | K28: अन्य जमा राशि (80C के अंतर्गत) | N28: रु. | O28: ='Other Deduction'!E6 -> 0.00
C29: (viii) | D29: यू.एल.आई.पी./वार्षिक प्लान | H29: रु. | I29: ='Other Deduction'!B14 -> 0.00 | J29: (xvii) | K29: सुकन्या समृद्धि योजना में जमा राशि | N29: रु. | O29: ='Other Deduction'!B19 -> 0.00
C30: (ix) | D30: गृह ऋण किश्त (HBA Premium) | H30: रु. | I30: ='GA-55'!V30+'Other Deduction'!B9 -> 0.00 | J30: (xviii) | N30: रु.
C31: योग (i से XViii) | N31: रु. | O31: =SUM(I22:I30)+SUM(O22:O30) -> 121121.00
C32: अधिकतम कटौती की राशि 1.50 लाख रु. तक | P32: रु. | Q32: 0.00
C33: (B) घटाइए - धारा 80CCD 1(B) नवीन पेंशन योजना में अतिरिक्त अंशदान (अधिकतम रु. 50,000) | P33: रु. | Q33: ='Other Deduction'!E8 -> 0.00
C34: योग 11(A+B+C) | P34: रु. | Q34: =SUM(Q32:Q32) -> 0.00
B35: 12 | C35: अन्य कटौतियाँ
C36: 1-धारा 80D, चिकित्सा बीमा प्रीमियम (स्वयं, पति/पत्नी व बच्चों के लिए रु. 25000, माता-पिता के लिए रु. 25000, सीनियर सिटीजन रु. 50,000) | P36: रु. | Q36: 0.00
C37: 2-धारा 80D, विकलांग आश्रितों के चिकित्सा आश्रितों के चिकित्सा उपचार (अधिकतम 75,000 तथा 80% या अधिक विकलांगता रु. 125000) | P37: रु. | Q37: 0.00
C38: 3-धारा 80D विशीष्ट रोगों के उपचार हेतु कटौती (अधिकतम रु. 40,000 , सीनियर सिटीजन हेतु रु. 100,000) | P38: रु. | Q38: 0.00
C39: 4-धारा 80D, उच्च शिक्षा हेतु लिए ऋण का ब्याज | P39: रु. | Q39: 0.00
C40: 5-धारा 80D धर्मार्थ संस्थाओं आदि को दिये दान (क श्रेणी में 100 प्रतिशत एवं ख श्रेणी में 50 प्रतिशत) | P40: रु. | Q40: 0.00
C41: 6-धारा 80U स्थाई रूप से शारीरिक असमर्थता की दशा में (अधिकतम 75,000 तथा अधिनियम 1995 के अनुसार 125,000) | P41: रु. | Q41: 0.00
C42: 7-धारा 80 TTA बचत खाते पर अधिकतम ब्याज रु. 10,000 194(1A) (80TTB-वरिष्ठ नागरिक अधिकतम ब्याज 50,000 रु.) | P42: रु. | Q42: 0.00
C43: 8-धारा 80GGA अनुमोदित वैज्ञानिक, सामाजिक, ग्रामीण विकास आदि हेतु दिया गया दान | P43: रु. | Q43: 0.00
C44: 9-धारा 80GGC राजनीतिक पार्टियों को दिया गया दान | P44: रु. | Q44: 0.00
C45: कुल योग 12 (1 से 9 तक) | P45: रु. | Q45: 0.00
B46: 13 | C46: कुल कटौती ( 11 + 12) | P46: रु. | Q46: =Q34+Q45 -> 0.00
B47: 14 | C47: कर योग्य आय ( 10-13 ) | P47: रु. | Q47: =(Q19-Q46) -> 897421.00
B48: 15 | C48: कुल आय की राशि को सम्पूर्ण करना (दस के गुणज में करना) धारा 288A | P48: रु. | Q48: =ROUND(Q47,-1) -> 897420.00
B49: 16 | C49: आय की गणना उपरोक्त कॉलम 15 के आधार पर
C50: एक व्यक्ति कर दाता | H50: वरिष्ठ नागरिक (60 से 80 वर्ष तक) | L50: 80 वर्ष या अधिक आयु
C51: 2,50,000 तक | F51: Nil | H51: 3,00,000 तक | K51: Nil | L51: 3,00,000 तक | O51: Nil | P51: रु. | Q51: 0.00
C52: 2,50,001-5,00,000 | F52: 5% | H52: 2,50,001-5,00,000 | K52: 5% | L52: 5,00,000 rd | O52: 5% | P52: रु. | Q52: =ROUND(IF('GA-55'!AB1="No",IF(Q48<250001,0,IF(Q48>500000,12500,((Q48-250000)*0.05))),IF(Q48<300001,0,IF(Q48>500000,10000,((Q48-300000)*0.05)))),0) -> 10000.00
C53: 5,00,001-7,50,000 | F53: 10% | H53: 5,00,001-7,50,000 | K53: 10% | L53: 5,00,001-7,50,000 | O53: 10% | P53: रु. | Q53: =IF(Q48<500001,0,IF(Q48>750000,25000,((Q48-500000)*0.1))) -> 25000.00
C54: 7,50,001-10,00,000 | F54: 15% | H54: 7,50,001-10,00,000 | K54: 15% | L54: 7,50,001-10,00,000 | O54: 15% | P54: रु. | Q54: =IF(Q48<750001,0,IF(Q48>1000000,37500,((Q48-750000)*0.15))) -> 22113.00
C55: 10,00,001-12,50,000 | F55: 20% | H55: 10,00,001-12,50,000 | K55: 20% | L55: 10,00,001-12,50,000 | O55: 20% | P55: रु. | Q55: =IF(Q48<1000001,0,IF(Q48>1250000,50000,((Q48-1000000)*0.2))) -> 0.00
C56: 12,50,001-15,00.000 | F56: 25% | H56: 12,50,001-15,00.000 | K56: 25% | L56: 12,50,001-15,00.000 | O56: 25% | P56: रु. | Q56: =IF(Q48<1250001,0,IF(Q48>1500000,62500,((Q48-1250000)*0.25))) -> 0.00
C57: 15,00,001 से अधिक | F57: 30% | H57: 15,00,001 से अधिक | K57: 30% | L57: 15,00,001 से अधिक | O57: 30% | P57: रु. | Q57: =IF(Q48<1500001,0,((Q48-1500000)*0.3)) -> 0.00
C58: (1) योग आयकर | P58: रु. | Q58: =SUM(Q51:Q57) -> 57113.00
C59: (2) छूट धारा 87(A) (2.50 लाख से 5.00 लाख तक की कर योग्य आय पर आयकर की छूट अधिकतम रु. 12,500 तक) | P59: रु. | Q59: =IF(Q48>500000,0,IF(Q58<12501,Q58,12500)) -> 0.00
C60: (3) शेष आयकर (1-2) | P60: रु. | Q60: =Q58-Q59 -> 57113.00
C61: (4) शिक्षा उपकार 2% एवं उच्च शिक्षा के लिए अधिभार 2% (योग 4%) | P61: रु. | Q61: =ROUND(Q60*0.04,0) -> 2285.00
C62: कुल आयकर (3+4) | P62: रु. | Q62: =SUM(Q60:Q61) -> 59398.00
B63: 17 | C63: घटाइए : राहत धारा 89 के तहत | P63: रु. | Q63: ='Other Deduction'!E18 -> 0.00
B64: 18 | C64: कुल शेष आयकर | P64: रु. | Q64: =Q62-Q63 -> 59398.00
B65: 19 | C65: आयकर कटौती का विवरण | F65: सितम्बर 2022 तक रु. | J65: दिसम्बर 2022 तक रु. | L65: जनवरी 2023 तक रु. | M65: फरवरी 2023 तक रु. | O65: टी.डी.एस. रु. | P65: योग कॉलम 19
F66: =SUM('GA-55'!X9:X15) -> 0 | J66: =SUM('GA-55'!X16:X18) -> 0 | L66: ='GA-55'!X19 -> 0 | M66: ='GA-55'!X20 -> 0 | O66: =SUM('GA-55'!X21:X29)+'Other Deduction'!E19 -> 0 | P66: =F66+J66+L66+M66+O66 -> 0.00
B67: =IF(Q64>P66,"Income Tax Payable",IF(Q64<P66,"Income Tax Refundable","Income Tax Payble/Refundable")) -> Income Tax Payable | P67: रु. | Q67: =IF(Q64>P66,Q64-P66,P66-Q64) -> 59398.00
D69: हस्ताक्षर कार्मिक | O69: हस्ताक्षर डीडीओ

Sheet Form 16
A2: FORM NO.16
A3: [See rule 31 (1) (a)]
A4: Part A
A5: Certificate under section 203 of the Income Tax Act, 1961 for tax deducted
A6: at source from income chargeable under the head “ Salaries “
A7: Name and address of the employer | G7: Name and Designation of the employee
A8: ='Master Sheet'!M9 -> RAM DAYAL NAGAR | G8: ='GA-55'!D5 -> PARMANAND MEGHWAL
A9: ='Master Sheet'!M7 -> PRINCIPAL | G9: ='GA-55'!K5 -> SENIOR TEACHER
A10: ='GA-55'!C3 -> GOVT. SR. SECONDARY SCHOOL, GORDHANPURA, ATRU, BARAN | G10: ='GA-55'!C3 -> GOVT. SR. SECONDARY SCHOOL, GORDHANPURA, ATRU, BARAN
A12: PAN of the Deducter | D12: TAN of the Deducter | G12: PAN of the Employee
D13: ='GA-55'!U5 -> JDHG09699E | G13: ='GA-55'!P5 -> ASQPM6311G
A14: TDS Circle where annual | G14: PERIOD | J14: Assessment Year
A15: return / statement under | G15: FROM | I15: TO | J15: 2023-24
A16: section 206 is to be filed | G16: 01.04.2022 | I16: 31.03.2023
A17: Smmary of amount Paid/credited and tax Deducted at source thereon in respect of the Employee
A18: Quarter(s) | C18: Receipt Numbersof Original Quaterly Statements of TDS Under Sub-Section (3) of Section 200 | F18: Amount Paid cridited | H18: Amount of Tax Deducted (Rs) | K18: Amount of Tax Deposited / Remitted (Rs)
A19: Quarter 1 | F19: =SUM('GA-55'!N9+'GA-55'!N10+'GA-55'!N11) -> 204054 | H19: =SUM('GA-55'!X9:X11) -> 0 | K19: =H19 -> 0
A20: Quarter 2 | F20: =SUM('GA-55'!N12+'GA-55'!N13+'GA-55'!N14+'GA-55'!N21) -> 213806 | H20: =SUM('GA-55'!X12:X14)+'GA-55'!X21 -> 0 | K20: =H20 -> 0
A21: Quarter 3 | F21: =SUM('GA-55'!N15+'GA-55'!N16+'GA-55'!N17+'GA-55'!N24) -> 222215 | H21: =SUM('GA-55'!X15:X17)+'GA-55'!X24 -> 0 | K21: =H21 -> 0
A22: Quarter 4 | F22: =SUM('GA-55'!N18+'GA-55'!N19+'GA-55'!N20+'GA-55'!N21+'GA-55'!N23+'GA-55'!N25+'GA-55'!N226+'GA-55'!N27+'GA-55'!N28+'GA-55'!N29) -> 255741 | H22: =SUM('GA-55'!X18:X29) -> 0 | K22: =H22 -> 0
A23: Total | F23: =SUM(F19:F22) -> 895816 | H23: =SUM(H19:H22) -> 0 | K23: =SUM(K19:K22) -> 0
A24: I.DETAILS TAX DEDUCTED AND DEPOSITED INTO CENTRAL GOVERNMENT ACCOUNT THROUGH BOOK ADJUSTMENT
A25: S.No | B25: Tax Deposited In Respect | E25: Book Identification Number (BIN)
B26: of the deducter | E26: Receipt Numbers of | G26: DDO Serial No in | I26: Date Of Transfer | K26: Status of Maching
C27: (Rs) | E27: Form No.24G | G27: Form No.24G | I27: Form No.24G | K27: with Form.No 24G
I28: (dd/mm/yyyy)
A29: 1 | B29: ='GA-55'!X9 -> 0
A30: 2 | B30: ='GA-55'!X10 -> 0
A31: 3 | B31: ='GA-55'!X11 -> 0
A32: 4 | B32: ='GA-55'!X12 -> 0
A33: 5 | B33: ='GA-55'!X13 -> 0
A34: 6 | B34: ='GA-55'!X14 -> 0
A35: 7 | B35: ='GA-55'!X15 -> 0
A36: 8 | B36: ='GA-55'!X16 -> 0
A37: 9 | B37: ='GA-55'!X17 -> 0
A38: 10 | B38: ='GA-55'!X18 -> 0
A39: 11 | B39: ='GA-55'!X19 -> 0
A40: 12 | B40: ='GA-55'!X20 -> 0
A41: 13 | B41: =SUM('GA-55'!X21+'GA-55'!X22+'GA-55'!X23+'GA-55'!X24+'GA-55'!X25+'GA-55'!X26+'GA-55'!X27+'GA-55'!X28+'GA-55'!X29) -> 0
A42: Total (Rs) | B42: =SUM(B29:B41) -> 0
A44: II.DETAILS TAX DEDUCTED AND DEPOSITED INTO CENTRAL GOVERNMENT ACCOUNT THROUGH BOOK CHALLANA
A45: S.No | B45: Tax Deposited In Respect | E45: Book Identification Number (CIN)
B46: of the deducter | E46: BRS Code of the | G46: Date on Which | I46: Challana Serial | K46: Status of Maching
C47: (Rs) | E47: Bank Branch | G47: Tax Deposited | I47: Number | K47: with Form.No 24G
G48: (dd/mm/yyyy)
A49: 1
A50: 2
A51: 3
A52: 4
A53: 5
A54: 6
A55: 7
A56: 8
A57: 9
A58: 10
A59: 11
A60: 12
A61: 13
A62: Total (Rs) | B62: =SUM(B49:D60) -> 0
A63: Verification
A64: I, | B64: ='Master Sheet'!M5 -> RAJENDRA KUMAR CHITTORA | E64: Son/Doughter of | G64: ='Master Sheet'!M6 -> RAM LAL | J64: Working In the Capacity Of
A65: ='Master Sheet'!M7 -> PRINCIPAL | D65: (Designation) do hereby certify that a sum of Rs. | I65: ='Tax Old Regime'!Q61 -> 46815 | J65: (in words)
A66: =PROPER(SpellNumber(I65)) -> Forty-Six Thousand Eight Hundred Fifteen | F66: has beeen deducted at source and paid to the credit of the Central Government.
A67: I further certify that the information given above is true and correct based on the book of accounts, documents and TDS Statements, TDS Deposited and other available records.
A69: Notes :
A70: 1. Government deductors to fill information in item I if tax is paid without production of an income-tax challan and in item II if tax .
A71: is paid accompanied by an income-tax challan
A72: 2. Non-Government deductors to fill information in item II.
A73: 3. The deductor shall furnish the address of the Commissioner of Income-tax (TDS) having jurisdiction as regards TDS
A74: statements of the assessee.
A75: 4. If an assessee is employed under one employer only during the year, certificate in Form No. 16 issued for the quarter ending on
A76: 31st March of the financial year shall contain the details of tax deducted and deposited for all the quarters of the financial year.
A77: 5. If an assessee is employed under more than one employer during the year, each of the employers shall issue Part
A78: A of the certificate in Form No. 16 pertaining to the period for which such assessee was employed with each of the employers.
A79: Part B (Annexure) of the certificate in Form No.16 may be issued by each of the employers or the last employer at the
A80: option of the assessee.
A81: 6. In items I and II, in column for tax deposited in respect of deductee, furnish total amount of TDS and education cess."
A83: Part B
A84: DETAILS OF SALARY PAID AND ANY OTHER INCOME AND TAX DEDUCTED
A85: 1. Gross Salary *
B86: ( a ) Salary as per provisions contained in section 17 (1) | I86: ='Tax Old Regime'!Q5 -> 897421
B87: ( b ) Value of perquisites under section 17 (2)
B88: (as per Form No. 12 BA, wherever applicable)
B89: ( c ) Profits in lieu of Salary under section 17 (3)
B90: (as per Form No. 12 BA, wherever applicable)
B91: ( d ) Total | J91: =I86+I87+I88+I89+I90 -> 897421
A93: 2. Less : Allowance to the extent exempt under section 10
A94: a)HRA | I94: ='Tax Old Regime'!Q6 -> 51228
A95: b)Other
A96: 3. Balance (1-2) | J96: =J91-I94-I95 -> 846193
A98: 4. Deductions :
B99: (a) Standard deduction | F99: Rs. | G99: 50000
B100: (b) Entertainment allowance | F100: Rs. | G100: 0
B101: (c) Tax on Employment | F101: Rs. | G101: 0
A102: 5. Aggregate of 4 (a to c) | I102: 50000
A104: 6. Income chargeable under the Head ‘Salaries’(3-5) | L104: =IF(AND((J96>50000)),(J96-I102),0) -> 796193
A106: 7. Add. : Any other income reported by the employee
B107: Less:- Loss From House Properties | L107: ='[1]Other Deduction'!B9 -> 0
A109: 8. Gross total income (6+7) | L109: =L104+L106-L107 -> 796193
G110: Gross Amount | I110: Qualifying Amt. | K110: Deductible Amt.
A111: 9. Deductions Under Chapter VIA
A112: A. | B112: Sections 80C,80CC and 80CCD1
A113: (a) | B113: Section 80C
B114: (i) | C114: GPF/NPS | F114: Rs. | G114: ='GA-55'!O30 -> 46121 | I114: =G114 -> 46121 | K114: =I114 -> 46121
B115: (ii) | C115: STATE INSURANCE | F115: Rs. | G115: ='Tax Old Regime'!I22 -> 48000 | I115: 48000 | K115: 48000
B116: (iii) | C116: LIC | F116: Rs. | I116: 0 | K116: 0
B117: (iv) | C117: Group Ins. | F117: Rs. | G117: ='Tax Old Regime'!I28 -> 0 | I117: 0 | K117: 0
B118: (vi) | C118: House Loan Installment | F118: Rs. | G118: ='Tax Old Regime'!I30 -> 0 | I118: 0 | K118: 0
B119: (vii) | C119: Others | F119: Rs. | G119: ='Tax Old Regime'!I24+'Tax Old Regime'!I25+'Tax Old Regime'!I26+'Tax Old Regime'!I29+'Tax Old Regime'!O23+'Tax Old Regime'!O24+'Tax Old Regime'!O25+'Tax Old Regime'!O26+'Tax Old Regime'!O27+'Tax Old Regime'!O28+'Tax Old Regime'!O29+'Tax Old Regime'!O30+'Tax Old Regime'!O31 -> 121121 | I119: 121121 | K119: 121121
A120: (b) | B120: Section 80CCC | F120: Rs. | I120: 0 | K120: 0
A121: (c) | B121: Section 80CCD | F121: Rs. | I121: 0 | K121: 0
A122: Aggregate amount deductible under the three sections | G122: =SUM(G114:G121) -> 215242 | I122: =SUM(I114:I121) -> 215242 | K122: =IF(SUM(K114:L119)>150000,150000,SUM(K114:L119)) -> 150000
A123: i.e.80C, 80CCC and 80CCD
A125: (d) | B125: Section 80CCD2 | F125: Rs. | G125: 0 | I125: =G125 -> 0 | K125: =I125 -> 0
A126: (e) | B126: Section 80CCD (1B) | F126: Rs. | G126: ='[1]Tax Old Regime'!Q33 -> 0 | I126: =G126 -> 0 | K126: =I126 -> 0
A128: B. | B128: Other Sections ( e.g. 80E, 80G, 80TTA etc) Under Chapter VIA
G129: Gross Amount | I129: Qualifying Amt. | K129: Deductible Amt.
B130: (i) | C130: Other Deductions | F130: Rs. | I130: =G130 -> 0 | K130: =I130 -> 0
B131: (ii) | F131: Rs. | I131: =G131 -> 0 | K131: =I131 -> 0
B132: (iii) | F132: Rs. | I132: =G132 -> 0 | K132: =I132 -> 0
A133: 10. Aggregate of deductible amount under chapter VI-A | K133: =K122+K125+K126+K130+K131+K132 -> 150000 | L133: 0
A135: 11. Total Income (8-10 ) | K135: ='Tax Old Regime'!Q48 -> 675070
A137: 12. Tax on Total Income | K137: ='Tax Old Regime'!Q55 -> 45014
A138: 13. Rebate U/S 87a | K138: ='[1]Tax Old Regime'!Q55 -> 0
A139: 14. Tax Payable on total income (12-13) | K139: =K137-K138 -> 45014
A140: 15.Education & Health Cess 4% | K140: ='Tax Old Regime'!Q58 -> 1801
A141: 16. Tax payable (14+15) | K141: ='Tax Old Regime'!Q59 -> 46815
A142: 17. Relife Under Section 89 (attach details) | K142: ='Other Deduction'!E18 -> 0
A143: 18. Tax payable (16-17) | K143: ='Tax Old Regime'!Q61 -> 46815
A144: 19.Tax Deducted at source U/S 192 | K144: =H23+B62 -> 0
A145: 20. Tax payable / refundable (17-18) | K145: =K143-K144 -> 46815
A146: Verification
A147: I, | B147: =B64 -> RAJENDRA KUMAR CHITTORA | E147: Son/Doughter of | G147: =G64 -> RAM LAL | J147: Working In the Capacity Of
A148: =A65 -> PRINCIPAL | D148: (Designation) do hereby certify that the information given above is true correct based on the
A149: book of accounts, documents and TDS Statements, TDS Deposited and other available records.
F154: Signature & Seal
A156: Place: | F156: Full Name | H156: ='Master Sheet'!M5 -> RAJENDRA KUMAR CHITTORA
A157: Date: | F157: Designation | H157: ='Master Sheet'!M7 -> PRINCIPAL

Sheet Hra Receipt
A2: RECEIPT OF HOUSE RENT
A3: (Under section 1 (13-A) of Income Tax Act)
H5: Date:- | I5: =TODAY() -> 2022-12-26
B6: I Owner | C6: ='Master Sheet'!M9 -> RAM DAYAL NAGAR
C7: Received with Thanks from Sri/Smt. | F7: ='Master Sheet'!E5 -> PARMANAND MEGHWAL | I7: ='Master Sheet'!E6 -> SENIOR TEACHER
B8: Address- | C8: ='Master Sheet'!D2 -> GOVT. SR. SECONDARY SCHOOL, GORDHANPURA, ATRU, BARAN
B9: The sum of | C9: Rs.= | D9: ='Other Deduction'!F18 -> 135696.10 | E9: =PROPER(SpellNumber(D9)) -> One Hundred Thirty-Five Thousand Six Hundred Ninety-Six
B10: Towards the House Rent @ Rs. = | E10: =ROUND(D9/12,0) -> 11308 | F10: =PROPER(SpellNumber(E10)) -> Eleven Thousand Three Hundred Eight
B11: Per Month From :- | D11: April 2022 To March 2023
B13: Rs. = | C13: =D9 -> 135696.1
B14: Date:- | C14: =TODAY() -> 2022-12-26
G15: (Signature of House Owner)
G16: (Affix Revenue Stamp of Rs.1/-)
G17: ='Master Sheet'!M9 -> RAM DAYAL NAGAR
G18: ='Master Sheet'!M10 -> KAWAI SALPURA, ATRU BARAN
